fUSD/lending_fUSD_20240614
["ID","MTS","AMOUNT","RATE_DAILY","PERIOD"]
[329412160,1718326299624,-500.0,0.00024657,2]
[329412161,1718326299649,-500.0,0.00024657,2]
[329412162,1718326299684,-500.0,0.00024657,2]
[329412163,1718326299695,-500.0,0.00024657,2]
[329412164,1718326299716,-500.0,0.00024657,2]
[329412165,1718326299736,-500.0,0.00024657,2]
[329412166,1718326299757,-500.0,0.00024657,2]
[329412167,1718326299808,-500.0,0.00024657,2]
[329412168,1718326299820,-500.0,0.00024657,2]
[329412169,1718326299836,-500.0,0.00024657,2]
[329412170,1718326299847,-500.0,0.00024657,2]
[329412171,1718326299874,-500.0,0.00024657,2]
[329412172,1718326299888,-500.0,0.00024657,2]
[329412173,1718326299932,-177.639917,0.00024657,7]
[329412174,1718326299953,-500.0,0.00024657,2]
[329412175,1718326300024,-500.0,0.00024657,2]
[329412176,1718326300053,-641.17,0.00024657,2]
[329412177,1718326300103,-500.0,0.00024657,2]
[329412178,1718326300123,-500.0,0.00024657,2]
[329412179,1718326300140,-500.0,0.00024657,2]
[329412180,1718326300229,-500.0,0.00024657,2]
[329412181,1718326300253,-500.0,0.00024657,2]
[329412182,1718326300264,-500.0,0.00024657,2]
[329412183,1718326300281,-570.32,0.00024657,2]
[329412184,1718326300324,-500.0,0.00024657,2]
[329412185,1718326300337,-500.0,0.00024657,2]
[329412186,1718326300350,-500.0,0.00024657,2]
[329412187,1718326300379,-500.0,0.00024657,2]
[329412188,1718326300399,-500.0,0.00024657,2]
[329412189,1718326300460,-500.0,0.00024657,2]
[329412190,1718326300508,-500.0,0.00024657,2]
[329412191,1718326300561,-756.62,0.00024657,2]
[329412192,1718326300575,-500.0,0.00024657,2]
[329412193,1718326300629,-500.0,0.00024657,2]
[329412194,1718326300675,-500.0,0.00024657,2]
[329412195,1718326300691,-500.0,0.00024657,2]
[329412196,1718326300739,-500.0,0.00024657,2]
[329412197,1718326300750,-500.0,0.00024657,2]
[329412198,1718326300820,-500.0,0.00024657,2]
[329412199,1718326300876,-230.1481355,0.00024657,2]
[329412200,1718326300904,-500.0,0.00024657,2]
[329412201,1718326300957,-196.48666154,0.00024657,2]
[329412202,1718326300988,-500.0,0.00024657,2]
[329412203,1718326301000,-188.01,0.00024657,2]
[329412204,1718326301032,-541.44,0.00024657,2]
[329412205,1718326301073,-500.0,0.00024657,2]
[329412206,1718326301092,-500.0,0.00024657,2]
[329412207,1718326301103,-500.0,0.00024657,2]
[329412208,1718326301138,-500.0,0.00024657,2]
[329412209,1718326301158,-500.0,0.00024657,2]
[329412210,1718326301179,-500.0,0.00024657,2]
[329412211,1718326301202,-500.0,0.00024657,2]
[329412212,1718326301213,-500.0,0.00024657,2]
[329412213,1718326301257,-500.0,0.00024657,2]
[329412214,1718326301275,-531.1,0.00024657,2]
[329412215,1718326301296,-500.0,0.00024657,2]
[329412216,1718326301314,-500.0,0.00024657,2]
[329412217,1718326301328,-500.0,0.00024657,2]
[329412218,1718326301353,-500.0,0.00024657,2]
[329412219,1718326301365,-307.363228,0.00024657,7]
[329412220,1718326301392,-307.363228,0.00024657,7]
[329412221,1718326301404,-500.0,0.00024657,2]
[329412222,1718326301430,-341.652658,0.00024657,7]
[329412223,1718326301474,-341.652658,0.00024657,7]
[329412224,1718326301486,-307.363228,0.00024657,7]
[329412225,1718326301508,-307.363228,0.00024657,7]
[329412226,1718326301531,-341.652658,0.00024657,7]
[329412227,1718326301564,-341.652658,0.00024657,7]
[329412228,1718326301575,-500.0,0.00024657,2]
[329412229,1718326301608,-500.0,0.00024657,2]
[329412230,1718326301640,-500.0,0.00024657,2]
[329412231,1718326301654,-871.93,0.00024657,2]
[329412232,1718326301669,-500.0,0.00024657,2]
[329412233,1718326301680,-500.0,0.00024657,2]
[329412234,1718326301696,-811.04,0.00024657,2]
[329412235,1718326301707,-500.0,0.00024657,2]
[329412236,1718326301727,-500.0,0.00024657,2]
[329412237,1718326301766,-1456.15,0.00024657,2]
[329412238,1718326301779,-500.0,0.00024657,2]
[329412239,1718326301794,-500.0,0.00024657,2]
[329412240,1718326301816,-500.0,0.00024657,2]
[329412241,1718326301837,-218.82826,0.00024657,7]
[329412242,1718326301871,-218.82826,0.00024657,7]
[329412243,1718326301883,-747.44,0.00024657,2]
[329412244,1718326301952,-218.82826,0.00024657,7]
[329412245,1718326301993,-897.13,0.00024657,2]
[329412246,1718326302070,-218.82826,0.00024657,7]
[329412247,1718326302084,-218.82826,0.00024657,7]
[329412248,1718326302107,-218.82826,0.00024657,7]
[329412249,1718326302139,-500.0,0.00024657,2]
[329412250,1718326302175,-500.0,0.00024657,2]
[329412251,1718326302213,-500.0,0.00024657,2]
[329412252,1718326302225,-151.0,0.00024657,7]
[329412253,1718326302236,-151.0,0.00024657,7]
[329412254,1718326302261,-151.0,0.00024657,7]
[329412255,1718326302279,-500.0,0.00024657,2]
[329412256,1718326302310,-2475.47,0.00024657,2]
[329412257,1718326302320,-500.0,0.00024657,2]
[329412258,1718326302333,-151.0,0.00024657,7]
[329412259,1718326302357,-500.0,0.00024657,2]
[329412260,1718326302403,-151.0,0.00024657,7]
[329412261,1718326302420,-500.0,0.00024657,2]
[329412262,1718326302436,-151.0,0.00024657,7]
[329412263,1718326302501,-685.651544,0.00024657,7]
[329412264,1718326302535,-500.0,0.00024657,2]
[329412265,1718326302566,-685.651544,0.00024657,7]
[329412266,1718326302580,-685.651544,0.00024657,7]
[329412267,1718326302603,-500.0,0.00024657,2]
[329412268,1718326302618,-285.28755951,0.00024657,2]
[329412269,1718326302630,-685.651544,0.00024657,7]
[329412270,1718326302643,-500.0,0.00024657,2]
[329412271,1718326302662,-685.651544,0.00024657,7]
[329412272,1718326302712,-685.651544,0.00024657,7]
[329412273,1718326302748,-500.0,0.00024657,2]
[329412274,1718326302760,-746.58,0.00024657,2]
[329412275,1718326302772,-500.0,0.00024657,2]
[329412276,1718326302805,-500.0,0.00024657,2]
[329412277,1718326302838,-500.0,0.00024657,2]
[329412278,1718326302850,-500.0,0.00024657,2]
[329412279,1718326302865,-2738.14,0.00024657,2]
[329412280,1718326302916,-500.0,0.00024657,2]
[329412281,1718326302937,-167.99,0.00024657,2]
[329412282,1718326302984,-500.0,0.00024657,2]
[329412283,1718326302995,-4588.61,0.00024657,2]
[329412284,1718326303040,-500.0,0.00024657,2]
[329412285,1718326303093,-500.0,0.00024657,2]
[329412286,1718326303145,-500.0,0.00024657,2]
[329412287,1718326303172,-500.0,0.00024657,2]
[329412288,1718326303183,-482.29728022,0.00024657,2]
[329412289,1718326303220,-500.0,0.00024657,2]
[329412290,1718326303251,-745.58,0.00024657,2]
[329412291,1718326303293,-151.0,0.00024657,7]
[329412292,1718326303306,-500.0,0.00024657,2]
[329412293,1718326303321,-151.0,0.00024657,7]
[329412294,1718326303331,-1721.54,0.00024657,2]
[329412295,1718326303347,-3059.36,0.00024657,2]
[329412296,1718326303377,-500.0,0.00024657,2]
[329412297,1718326303388,-151.0,0.00024657,7]
[329412298,1718326303400,-151.0,0.00024657,7]
[329412299,1718326303429,-151.0,0.00024657,7]
[329412300,1718326303440,-500.0,0.00024657,2]
[329412301,1718326303456,-223.029045,0.00024657,7]
[329412302,1718326303468,-500.0,0.00024657,2]
[329412303,1718326303487,-500.0,0.00024657,2]
[329412304,1718326303503,-500.0,0.00024657,2]
[329412305,1718326303514,-500.0,0.00024657,2]
[329412306,1718326303534,-500.0,0.00024657,2]
[329412307,1718326303566,-1034.72,0.00024657,2]
[329412308,1718326303580,-500.0,0.00024657,2]
[329412309,1718326303595,-3109.59,0.00024657,2]
[329412310,1718326303607,-151.0,0.00024657,7]
[329412311,1718326303620,-960.45,0.00024657,2]
[329412312,1718326303631,-500.0,0.00024657,2]
[329412313,1718326303653,-151.0,0.00024657,7]
[329412314,1718326303673,-475.27,0.00024657,2]
[329412315,1718326303694,-4009.44,0.00024657,2]
[329412316,1718326303707,-500.0,0.00024657,2]
[329412317,1718326303730,-500.0,0.00024657,2]
[329412318,1718326303742,-151.0,0.00024657,7]
[329412319,1718326303790,-500.0,0.00024657,2]
[329412320,1718326303860,-211.336993,0.00024657,7]
[329412321,1718326303873,-354.671615,0.00024657,7]
[329412322,1718326303894,-1373.05,0.00024657,2]
[329412323,1718326303946,-354.671615,0.00024657,7]
[329412324,1718326303973,-500.0,0.00024657,2]
[329412325,1718326303984,-1310.27,0.00024657,2]
[329412326,1718326304081,-500.0,0.00024657,2]
[329412327,1718326304102,-354.671615,0.00024657,7]
[329412328,1718326304117,-354.671615,0.00024657,7]
[329412329,1718326304140,-500.0,0.00024657,2]
[329412330,1718326304161,-161.253192,0.00024657,7]
[329412331,1718326304177,-161.253192,0.00024657,7]
[329412332,1718326304190,-1256.73,0.00024657,2]
[329412333,1718326304206,-500.0,0.00024657,2]
[329412334,1718326304268,-538.3,0.00024657,2]
[329412335,1718326304301,-161.253192,0.00024657,7]
[329412336,1718326304328,-161.253192,0.00024657,7]
[329412337,1718326304353,-500.0,0.00024657,2]
[329412338,1718326304367,-1048.7,0.00024657,2]
[329412339,1718326304387,-500.0,0.00024657,2]
[329412340,1718326304410,-500.0,0.00024657,2]
[329412341,1718326304447,-1580.07,0.00024657,2]
[329412342,1718326304462,-909.71,0.00024657,2]
[329412343,1718326304484,-500.0,0.00024657,2]
[329412344,1718326304544,-500.0,0.00024657,2]
[329412345,1718326304557,-500.0,0.00024657,2]
[329412346,1718326304573,-500.0,0.00024657,2]
[329412347,1718326304587,-9157.77,0.00024657,2]
[329412348,1718326304637,-500.0,0.00024657,2]
[329412349,1718326304669,-151.0,0.00024657,7]
[329412350,1718326304681,-1186.73,0.00024657,2]
[329412351,1718326304743,-151.0,0.00024657,7]
[329412352,1718326304764,-500.0,0.00024657,2]
[329412353,1718326304816,-500.0,0.00024657,2]
[329412354,1718326304880,-500.0,0.00024657,2]
[329412355,1718326304899,-555.02,0.00024657,2]
[329412356,1718326304914,-500.0,0.00024657,2]
[329412357,1718326304957,-500.0,0.00024657,2]
[329412358,1718326305035,-500.0,0.00024657,2]
[329412359,1718326305076,-1036.07,0.00024657,2]
[329412360,1718326305092,-500.0,0.00024657,2]
[329412361,1718326305135,-500.0,0.00024657,2]
[329412362,1718326305151,-5406.88,0.00024657,2]
[329412363,1718326305169,-1070.96,0.00024657,2]
[329412364,1718326305244,-500.0,0.00024657,2]
[329412365,1718326305269,-500.0,0.00024657,2]
[329412366,1718326305281,-2320.28,0.00024657,2]
[329412367,1718326305319,-500.0,0.00024657,2]
[329412368,1718326305354,-500.0,0.00024657,2]
[329412369,1718326305384,-500.0,0.00024657,2]
[329412370,1718326305427,-736.73,0.00024657,2]
[329412371,1718326305467,-500.0,0.00024657,2]
[329412372,1718326305591,-901.93,0.00024657,2]
[329412373,1718326305602,-890.11,0.00024657,2]
[329412374,1718326305612,-1107.32,0.00024657,2]
[329412375,1718326305637,-500.0,0.00024657,2]
[329412376,1718326305647,-500.0,0.00024657,2]
[329412377,1718326305660,-500.0,0.00024657,2]
[329412378,1718326305670,-500.0,0.00024657,2]
[329412379,1718326305681,-500.0,0.00024657,2]
[329412380,1718326305692,-617.42,0.00024657,2]
[329412381,1718326305704,-1082.78,0.00024657,2]
[329412382,1718326305715,-229.66,0.00024657,2]
[329412383,1718326305744,-500.0,0.00024657,2]
[329412384,1718326305765,-500.0,0.00024657,2]
[329412385,1718326305785,-500.0,0.00024657,2]
[329412386,1718326305795,-500.0,0.00024657,2]
[329412387,1718326305807,-500.0,0.00024657,2]
[329412388,1718326305819,-1129.3,0.00024657,2]
[329412389,1718326305831,-500.0,0.00024657,2]
[329412390,1718326305842,-1279.93,0.00024657,2]
[329412391,1718326305860,-681.39,0.00024657,2]
[329412392,1718326305898,-1545.42,0.00024657,2]
[329412393,1718326305913,-500.0,0.00024657,2]
[329412394,1718326305941,-500.0,0.00024657,2]
[329412395,1718326305953,-500.0,0.00024657,2]
[329412396,1718326305966,-1018.85,0.00024657,2]
[329412397,1718326305981,-1223.08,0.00024657,2]
[329412398,1718326306033,-691.09,0.00024657,2]
[329412399,1718326306046,-714.83,0.00024657,2]
[329412400,1718326306062,-500.0,0.00024657,2]
[329412401,1718326306081,-500.0,0.00024657,2]
[329412402,1718326306112,-778.93,0.00024657,2]
[329412403,1718326306144,-3531.42,0.00024657,2]
[329412404,1718326306156,-500.0,0.00024657,2]
[329412405,1718326306211,-681.15,0.00024657,2]
[329412406,1718326306222,-500.0,0.00024657,2]
[329412407,1718326306233,-1473.8,0.00024657,2]
[329412408,1718326306259,-788.91,0.00024657,2]
[329412409,1718326306293,-500.0,0.00024657,2]
[329412410,1718326306306,-6475.63,0.00024657,2]
[329412411,1718326306353,-777.73,0.00024657,2]
[329412412,1718326306365,-500.0,0.00024657,2]
[329412413,1718326306392,-1577.29,0.00024657,2]
[329412414,1718326306415,-500.0,0.00024657,2]
[329412415,1718326306475,-1120.28,0.00024657,2]
[329412416,1718326306530,-1642.87,0.00024657,2]
[329412417,1718326306564,-2389.0,0.00024657,2]
[329412418,1718326306584,-371.68192109,0.00024657,2]
[329412419,1718326306616,-151.0,0.00024657,7]
[329412420,1718326306664,-151.0,0.00024657,7]
[329412421,1718326306677,-1291.36,0.00024657,2]
[329412422,1718326306699,-500.0,0.00024657,2]
[329412423,1718326306710,-907.92,0.00024657,2]
[329412424,1718326306721,-500.0,0.00024657,2]
[329412425,1718326306796,-500.0,0.00024657,2]
[329412426,1718326306820,-520.14,0.00024657,2]
[329412427,1718326306864,-500.0,0.00024657,2]
[329412428,1718326306875,-12987.45,0.00024657,2]
[329412429,1718326306929,-151.0,0.00024657,7]
[329412430,1718326306955,-160.367704,0.00024657,7]
[329412431,1718326306988,-2319.99,0.00024657,2]
[329412432,1718326307000,-500.0,0.00024657,2]
[329412433,1718326307031,-611.86,0.00024657,2]
[329412434,1718326307056,-416.34,0.00024657,2]
[329412435,1718326307072,-778.21,0.00024657,2]
[329412436,1718326307104,-500.0,0.00024657,2]
[329412437,1718326307183,-500.0,0.00024657,2]
[329412438,1718326307199,-754.88,0.00024657,2]
[329412439,1718326307238,-4074.81,0.00024657,2]
[329412440,1718326307263,-2845.3,0.00024657,2]
[329412441,1718326307276,-656.54,0.00024657,2]
[329412442,1718326307289,-500.0,0.00024657,2]
[329412443,1718326307306,-500.0,0.00024657,2]
[329412444,1718326307322,-1483.98,0.00024657,2]
[329412445,1718326307366,-1532.91,0.00024657,2]
[329412446,1718326307379,-2056.22,0.00024657,2]
[329412447,1718326307409,-500.0,0.00024657,2]
[329412448,1718326307489,-576.83,0.00024657,2]
[329412449,1718326307532,-1278.2,0.00024657,2]
[329412450,1718326307600,-500.0,0.00024657,2]
[329412451,1718326307631,-599.45,0.00024657,2]
[329412452,1718326307652,-500.0,0.00024657,2]
[329412453,1718326307688,-872.76,0.00024657,2]
[329412454,1718326307727,-599.429581,0.00024657,7]
[329412455,1718326307756,-599.429581,0.00024657,7]
[329412456,1718326307785,-1297.03,0.00024657,2]
[329412457,1718326307844,-622.48,0.00024657,2]
[329412458,1718326307911,-20832.05,0.00024657,2]
[329412459,1718326307950,-500.0,0.00024657,2]
[329412460,1718326308014,-3101.77,0.00024657,2]
[329412461,1718326308040,-599.429581,0.00024657,7]
[329412462,1718326308052,-599.42958,0.00024657,7]
[329412463,1718326308064,-500.0,0.00024657,2]
[329412464,1718326308131,-500.0,0.00024657,2]
[329412465,1718326308153,-500.0,0.00024657,2]
[329412466,1718326308168,-510.028386,0.00024657,2]
[329412467,1718326308188,-643.49,0.00024657,2]
[329412468,1718326308199,-500.0,0.00024657,2]
[329412469,1718326308228,-500.0,0.00024657,2]
[329412470,1718326308260,-500.0,0.00024657,2]
[329412471,1718326308307,-5842.58,0.00024657,2]
[329412472,1718326308366,-1263.39,0.00024657,2]
[329412473,1718326308383,-500.0,0.00024657,2]
[329412474,1718326308417,-500.0,0.00024657,2]
[329412475,1718326308428,-500.0,0.00024657,2]
[329412476,1718326308449,-2399.05,0.00024657,2]
[329412477,1718326308477,-1214.38,0.00024657,2]
[329412478,1718326308502,-500.0,0.00024657,2]
[329412479,1718326308515,-2171.12,0.00024657,2]
[329412480,1718326308533,-500.0,0.00024657,2]
[329412481,1718326308588,-500.0,0.00024657,2]
[329412482,1718326308612,-887.59,0.00024657,2]
[329412483,1718326308634,-2938.01,0.00024657,2]
[329412484,1718326308646,-881.63,0.00024657,2]
[329412485,1718326308658,-500.0,0.00024657,2]
[329412486,1718326308676,-1881.22,0.00024657,2]
[329412487,1718326308698,-2087.76,0.00024657,2]
[329412488,1718326308712,-1025.72,0.00024657,2]
[329412489,1718326308733,-500.0,0.00024657,2]
[329412490,1718326308748,-500.0,0.00024657,2]
[329412491,1718326308775,-1880.15,0.00024657,2]
[329412492,1718326308790,-1571.8,0.00024657,2]
[329412493,1718326308801,-536.8069857,0.00024657,2]
[329412494,1718326308832,-9937.45,0.00024657,2]
[329412495,1718326308843,-500.0,0.00024657,2]
[329412496,1718326308885,-1153.0,0.00024657,2]
[329412497,1718326308899,-500.0,0.00024657,2]
[329412498,1718326308921,-500.0,0.00024657,2]
[329412499,1718326308964,-500.0,0.00024657,2]
[329412500,1718326308977,-1172.55,0.00024657,2]
[329412501,1718326309029,-500.0,0.00024657,2]
[329412502,1718326309055,-1392.18,0.00024657,2]
[329412503,1718326309068,-1618.84,0.00024657,2]
[329412504,1718326309108,-500.0,0.00024657,2]
[329412505,1718326309120,-500.0,0.00024657,2]
[329412506,1718326309151,-2248.57,0.00024657,2]
[329412507,1718326309176,-500.0,0.00024657,2]
[329412508,1718326309204,-759.17,0.00024657,2]
[329412509,1718326309217,-3702.08,0.00024657,2]
[329412510,1718326309251,-151.0,0.00024657,7]
[329412511,1718326309265,-151.0,0.00024657,7]
[329412512,1718326309278,-500.0,0.00024657,2]
[329412513,1718326309307,-11940.85,0.00024657,2]
[329412514,1718326309358,-500.0,0.00024657,2]
[329412515,1718326309408,-500.0,0.00024657,2]
[329412516,1718326309439,-537.12,0.00024657,2]
[329412517,1718326309473,-500.0,0.00024657,2]
[329412518,1718326309488,-899.62,0.00024657,2]
[329412519,1718326309576,-1594.39,0.00024657,2]
[329412520,1718326309587,-4218.81,0.00024657,2]
[329412521,1718326309599,-657.14,0.00024657,2]
[329412522,1718326309612,-500.0,0.00024657,2]
[329412523,1718326309657,-656.47,0.00024657,2]
[329412524,1718326309668,-795.48,0.00024657,2]
[329412525,1718326309678,-3013.12,0.00024657,2]
[329412526,1718326309691,-574.72,0.00024657,2]
[329412527,1718326309706,-500.0,0.00024657,2]
[329412528,1718326309717,-500.0,0.00024657,2]
[329412529,1718326309731,-500.0,0.00024657,2]
[329412530,1718326309805,-500.0,0.00024657,2]
[329412531,1718326309817,-4273.7,0.00024657,2]
[329412532,1718326309857,-6462.427606,0.00024657,7]
[329412533,1718326309868,-2686.47,0.00024657,2]
[329412534,1718326309903,-500.0,0.00024657,2]
[329412535,1718326309936,-747.72,0.00024657,2]
[329412536,1718326309948,-339.51081112,0.00024657,2]
[329412537,1718326309960,-871.16,0.00024657,2]
[329412538,1718326309976,-500.0,0.00024657,2]
[329412539,1718326309987,-500.0,0.00024657,2]
[329412540,1718326309998,-154.256273,0.00024657,7]
[329412541,1718326310011,-500.0,0.00024657,2]
[329412542,1718326310031,-151.0,0.00024658,7]
[329412543,1718326310069,-151.0,0.00024658,7]
[329412544,1718326310099,-151.0,0.00024658,7]
[329412545,1718326310124,-151.0,0.00024658,7]
[329412546,1718326310136,-151.0,0.00024658,7]
[329412547,1718326310158,-151.0,0.00024658,7]
[329412548,1718326310173,-151.0,0.00024658,7]
[329412549,1718326310201,-151.0,0.00024658,7]
[329412550,1718326310227,-156.863865,0.00024658,7]
[329412551,1718326310246,-706.02,0.00024658,2]
[329412552,1718326310263,-151.0,0.00024664,3]
[329412553,1718326310291,-150.0,0.00024706,2]
[329412554,1718326310337,-34094.0,0.00024789,2]
[329412555,1718326310356,-171.86410597,0.00024798,2]
[329412556,1718326310367,-171.86410597,0.00024798,2]
[329412557,1718326310407,-171.86410597,0.00024798,2]
[329412558,1718326310419,-171.86410597,0.00024798,2]
[329412559,1718326310445,-170.52636602,0.00024799,2]
[329412560,1718326310473,-170.52636601,0.00024799,2]
[329412561,1718326310505,-170.52636601,0.00024799,2]
[329412562,1718326310532,-3163.01523537,0.00024831,2]
[329412563,1718326310556,-5000.0,0.000249,9]
[329412564,1718326310604,-1000.0,0.0002493,2]
[329412565,1718326310621,-500.0,0.0002493,3]
[329412566,1718326310656,-500.0,0.0002493,3]
[329412567,1718326310714,-500.0,0.00024931,3]
[329412568,1718326310730,-381.68,0.00024931,3]
[329412569,1718326310740,-500.0,0.00024931,3]
[329412570,1718326310754,-500.0,0.00024931,3]
[329412571,1718326310800,-500.0,0.00024931,3]
[329412572,1718326310822,-500.0,0.00024931,3]
[329412573,1718326310844,-500.0,0.00024931,3]
[329412574,1718326310856,-188.95,0.00024931,3]
[329412575,1718326310874,-235.65624,0.00024931,7]
[329412576,1718326310900,-500.0,0.00024931,3]
[329412577,1718326310915,-500.0,0.00024931,3]
[329412578,1718326310926,-500.0,0.00024931,3]
[329412579,1718326310937,-568.34306687,0.00024931,3]
[329412580,1718326310961,-500.0,0.00024931,3]
[329412581,1718326310992,-421.11,0.00024931,3]
[329412582,1718326311005,-151.0,0.00024931,7]
[329412583,1718326311052,-151.0,0.00024931,7]
[329412584,1718326311076,-151.0,0.00024931,7]
[329412585,1718326311106,-500.0,0.00024931,3]
[329412586,1718326311120,-500.0,0.00024931,3]
[329412587,1718326311137,-500.0,0.00024931,3]
[329412588,1718326311150,-500.0,0.00024931,3]
[329412589,1718326311196,-500.0,0.00024931,3]
[329412590,1718326311207,-500.0,0.00024931,3]
[329412591,1718326311224,-500.0,0.00024931,3]
[329412592,1718326311235,-500.0,0.00024931,3]
[329412593,1718326311247,-500.0,0.00024931,3]
[329412594,1718326311257,-310.56,0.00024931,3]
[329412595,1718326311313,-230.20227111,0.00024931,3]
[329412596,1718326311343,-500.0,0.00024931,3]
[329412597,1718326311398,-500.0,0.00024931,3]
[329412598,1718326311428,-500.0,0.00024931,3]
[329412599,1718326311464,-553.86,0.00024931,3]
[329412600,1718326311482,-500.0,0.00024931,3]
[329412601,1718326311496,-500.0,0.00024931,3]
[329412602,1718326311513,-500.0,0.00024931,3]
[329412603,1718326311532,-500.0,0.00024931,3]
[329412604,1718326311544,-500.0,0.00024931,3]
[329412605,1718326311555,-500.0,0.00024931,3]
[329412606,1718326311565,-151.0,0.00024931,7]
[329412607,1718326311587,-151.0,0.00024931,7]
[329412608,1718326311610,-500.0,0.00024931,3]
[329412609,1718326311620,-500.0,0.00024931,3]
[329412610,1718326311631,-500.0,0.00024931,3]
[329412611,1718326311642,-500.0,0.00024931,3]
[329412612,1718326311653,-500.0,0.00024931,3]
[329412613,1718326311688,-500.0,0.00024931,3]
[329412614,1718326311699,-151.0,0.00024931,7]
[329412615,1718326311740,-500.0,0.00024931,3]
[329412616,1718326311766,-151.0,0.00024931,7]
[329412617,1718326311784,-500.0,0.00024931,3]
[329412618,1718326311804,-500.0,0.00024931,3]
[329412619,1718326311817,-151.0,0.00024931,7]
[329412620,1718326311843,-151.0,0.00024931,7]
[329412621,1718326311863,-500.0,0.00024931,3]
[329412622,1718326311882,-763.62,0.00024931,3]
[329412623,1718326311894,-500.0,0.00024931,3]
[329412624,1718326311912,-500.0,0.00024931,3]
[329412625,1718326311941,-500.0,0.00024931,3]
[329412626,1718326311952,-500.0,0.00024931,3]
[329412627,1718326311963,-500.0,0.00024931,3]
[329412628,1718326311975,-500.0,0.00024931,3]
[329412629,1718326311987,-500.0,0.00024931,3]
[329412630,1718326312010,-500.0,0.00024931,3]
[329412631,1718326312020,-500.0,0.00024931,3]
[329412632,1718326312039,-500.0,0.00024931,3]
[329412633,1718326312066,-500.0,0.00024931,3]
[329412634,1718326312087,-500.0,0.00024931,3]
[329412635,1718326312120,-500.0,0.00024931,3]
[329412636,1718326312131,-500.0,0.00024931,3]
[329412637,1718326312143,-599.17,0.00024931,3]
[329412638,1718326312155,-500.0,0.00024931,3]
[329412639,1718326312168,-500.0,0.00024931,3]
[329412640,1718326312179,-500.0,0.00024931,3]
[329412641,1718326312196,-500.0,0.00024931,3]
[329412642,1718326312212,-361.98,0.00024931,3]
[329412643,1718326312225,-500.0,0.00024931,3]
[329412644,1718326312237,-500.0,0.00024931,3]
[329412645,1718326312248,-500.0,0.00024931,3]
[329412646,1718326312264,-640.07,0.00024931,3]
[329412647,1718326312277,-500.0,0.00024931,3]
[329412648,1718326312292,-500.0,0.00024931,3]
[329412649,1718326312308,-500.0,0.00024931,3]
[329412650,1718326312325,-500.0,0.00024931,3]
[329412651,1718326312336,-500.0,0.00024931,3]
[329412652,1718326312348,-500.0,0.00024931,3]
[329412653,1718326312361,-500.0,0.00024931,3]
[329412654,1718326312378,-232.22525483,0.00024931,3]
[329412655,1718326312398,-500.0,0.00024931,3]
[329412656,1718326312408,-501.17759586,0.00024931,3]
[329412657,1718326312428,-500.0,0.00024931,3]
[329412658,1718326312452,-286.41049522,0.00024931,3]
[329412659,1718326312465,-500.0,0.00024931,3]